fUSD/lending_fUSD_20250607
["ID","MTS","AMOUNT","RATE_DAILY","PERIOD"]
[364839102,1749267081414,-241.400042,0.00027726,7]
[364839103,1749267081425,-480.0,0.00027726,5]
[364839104,1749267081435,-3452.23,0.00027726,5]
[364839105,1749267081445,-241.400042,0.00027726,7]
[364839106,1749267081456,-1447.7,0.00027726,5]
[364839107,1749267081466,-241.400042,0.00027726,7]
[364839108,1749267081476,-980.64,0.00027726,5]
[364839109,1749267081486,-1182.54,0.00027726,5]
[364839110,1749267081496,-480.0,0.00027726,5]
[364839111,1749267081507,-480.0,0.00027726,5]
[364839112,1749267081518,-672.79,0.00027726,5]
[364839113,1749267081528,-480.0,0.00027726,5]
[364839114,1749267081538,-1741.11,0.00027726,5]
[364839115,1749267081548,-151.0,0.00027726,7]
[364839116,1749267081559,-499.3343995,0.00027726,5]
[364839117,1749267081570,-480.0,0.00027726,5]
[364839118,1749267081581,-151.0,0.00027726,7]
[364839119,1749267081592,-1748.83,0.00027726,5]
[364839120,1749267081602,-2996.31,0.00027726,5]
[364839121,1749267081612,-816.17,0.00027726,5]
[364839122,1749267081622,-480.0,0.00027726,5]
[364839123,1749267081632,-2163.97,0.00027726,5]
[364839124,1749267081642,-715.95,0.00027726,5]
[364839125,1749267081652,-480.0,0.00027726,5]
[364839126,1749267081662,-480.0,0.00027726,5]
[364839127,1749267081671,-672.93,0.00027726,5]
[364839128,1749267081683,-480.0,0.00027726,5]
[364839129,1749267081692,-1892.42,0.00027726,5]
[364839130,1749267081703,-483.04,0.00027726,2]
[364839131,1749267081715,-480.0,0.00027726,5]
[364839132,1749267081725,-1729.01,0.00027726,5]
[364839133,1749267081735,-311.02779727,0.00027726,5]
[364839134,1749267081744,-480.0,0.00027726,5]
[364839135,1749267081754,-4307.55,0.00027726,5]
[364839136,1749267081764,-478.79600079,0.00027726,5]
[364839137,1749267081773,-480.0,0.00027726,5]
[364839138,1749267081784,-504.07705983,0.00027726,5]
[364839139,1749267081795,-674.63,0.00027726,5]
[364839140,1749267081804,-151.0,0.00027726,7]
[364839141,1749267081814,-151.0,0.00027726,7]
[364839142,1749267081824,-480.0,0.00027726,2]
[364839143,1749267081833,-480.0,0.00027726,5]
[364839144,1749267081843,-480.0,0.00027726,5]
[364839145,1749267081853,-891.05,0.00027726,5]
[364839146,1749267081862,-832.77,0.00027726,5]
[364839147,1749267081871,-1720.22,0.00027726,5]
[364839148,1749267081881,-897.55,0.00027726,5]
[364839149,1749267081890,-3111.73,0.00027726,5]
[364839150,1749267081900,-629.18,0.00027726,5]
[364839151,1749267081909,-480.0,0.00027726,5]
[364839152,1749267081920,-480.0,0.00027726,5]
[364839153,1749267081930,-480.0,0.00027726,5]
[364839154,1749267081940,-1505.03,0.00027726,5]
[364839155,1749267081951,-1150.03,0.00027726,5]
[364839156,1749267081961,-480.0,0.00027726,5]
[364839157,1749267081971,-1925.21,0.00027726,5]
[364839158,1749267081982,-5617.32,0.00027726,5]
[364839159,1749267081993,-584.09837853,0.00027726,5]
[364839160,1749267082004,-160.87168382,0.00027782,2]
[364839161,1749267082016,-291.323816,0.0002779,7]
[364839162,1749267082026,-291.323816,0.0002779,7]
[364839163,1749267082037,-159.872759,0.0002779,7]
[364839164,1749267082047,-159.872759,0.0002779,7]
[364839165,1749267082056,-246.434752,0.0002779,7]
[364839166,1749267082067,-168.732821,0.0002779,7]
[364839167,1749267082079,-151.0,0.0002779,7]
[364839168,1749267082089,-151.0,0.0002779,7]
[364839169,1749267082099,-11375.26523794,0.0002779,2]
[364839170,1749267082109,-1300.0,0.000278,10]
[364839171,1749267082121,-300.0,0.000278,10]
[364839172,1749267082132,-17565.56,0.000278,2]
[364839173,1749267082142,-2100.0,0.000278,10]
[364839174,1749267082152,-1000.0,0.000278,2]
[364839175,1749267082162,-158.46912684,0.00027808,30]
[364839176,1749267082172,-150.0,0.00027836,2]
[364839177,1749267082181,-300.0,0.00027836,2]
[364839178,1749267082191,-341.06,0.00027836,2]
[364839179,1749267082201,-300.79,0.00027836,2]
[364839180,1749267082211,-227.47821287,0.00027851,23]
[364839181,1749267082221,-407.51,0.00027853,2]
[364839182,1749267082230,-31484.0,0.0002788,7]
[364839183,1749267082240,-151.0,0.0002788,7]
[364839184,1749267082251,-607.976154,0.0002788,7]
[364839185,1749267082260,-607.976154,0.0002788,7]
[364839186,1749267082270,-151.0,0.0002788,7]
[364839187,1749267082280,-21327.1718941,0.00027887,2]
[364839188,1749267082291,-151.0,0.00027889,7]
[364839189,1749267082301,-242.83641,0.00027889,7]
[364839190,1749267082311,-242.83641,0.00027889,7]
[364839191,1749267082321,-157.335287,0.00027889,7]
[364839192,1749267082332,-157.335287,0.00027889,7]
[364839193,1749267082342,-151.0,0.00027889,7]
[364839194,1749267082353,-788.64,0.00027889,5]
[364839195,1749267082364,-788.64,0.00027889,5]
[364839196,1749267082375,-788.64,0.00027889,5]
[364839197,1749267082385,-788.64,0.00027889,5]
[364839198,1749267082396,-788.78,0.00027889,5]
[364839199,1749267082406,-636.82,0.0002789,5]
[364839200,1749267082416,-151.0,0.0002789,7]
[364839201,1749267082426,-2014.532933,0.0002789,5]
[364839202,1749267082436,-1712.784714,0.0002789,5]
[364839203,1749267082447,-291.323816,0.0002789,7]
[364839204,1749267082457,-291.323816,0.0002789,7]
[364839205,1749267082467,-159.872759,0.0002789,7]
[364839206,1749267082477,-159.872759,0.0002789,7]
[364839207,1749267082487,-151.0,0.0002789,7]
[364839208,1749267082497,-151.0,0.0002789,7]
[364839209,1749267082507,-524.31049664,0.0002789,5]
[364839210,1749267082517,-484.28023511,0.0002789,5]
[364839211,1749267082527,-480.0,0.0002789,5]
[364839212,1749267082536,-151.0,0.0002789,7]
[364839213,1749267082546,-480.0,0.0002789,5]
[364839214,1749267082556,-607.976154,0.0002789,7]
[364839215,1749267082566,-607.976156,0.0002789,7]
[364839216,1749267082576,-480.0,0.0002789,5]
[364839217,1749267082585,-480.0,0.0002789,5]
[364839218,1749267082595,-480.0,0.0002789,5]
[364839219,1749267082812,-480.0,0.0002789,5]
[364839220,1749267082823,-263.395409,0.0002789,7]
[364839221,1749267082832,-263.395409,0.0002789,7]
[364839222,1749267082843,-463.54139938,0.0002789,5]
[364839223,1749267082852,-263.395409,0.0002789,7]
[364839224,1749267082863,-480.0,0.0002789,5]
[364839225,1749267082872,-263.395409,0.0002789,7]
[364839226,1749267082882,-480.0,0.0002789,5]
[364839227,1749267082893,-480.0,0.0002789,5]
[364839228,1749267082902,-480.0,0.0002789,5]
[364839229,1749267082912,-500.72939697,0.0002789,5]
[364839230,1749267082922,-496.4309924,0.0002789,5]
[364839231,1749267082932,-480.0,0.0002789,5]
[364839232,1749267082941,-480.0,0.0002789,5]
[364839233,1749267082952,-151.0,0.0002789,7]
[364839234,1749267082962,-168.600734,0.0002789,7]
[364839235,1749267082973,-480.0,0.0002789,5]
[364839236,1749267082983,-480.0,0.0002789,5]
[364839237,1749267082994,-480.0,0.0002789,5]
[364839238,1749267083006,-151.0,0.0002789,7]
[364839239,1749267083015,-151.0,0.0002789,7]
[364839240,1749267083025,-151.0,0.0002789,7]
[364839241,1749267083035,-498.03321901,0.0002789,5]
[364839242,1749267083046,-480.0,0.0002789,5]
[364839243,1749267083057,-480.0,0.0002789,5]
[364839244,1749267083069,-151.0,0.0002789,7]
[364839245,1749267083079,-151.0,0.0002789,7]
[364839246,1749267083089,-480.0,0.0002789,5]
[364839247,1749267083098,-151.0,0.0002789,7]
[364839248,1749267083108,-480.0,0.0002789,5]
[364839249,1749267083118,-480.0,0.0002789,5]
[364839250,1749267083129,-480.0,0.0002789,5]
[364839251,1749267083138,-480.0,0.0002789,5]
[364839252,1749267083147,-480.0,0.0002789,5]
[364839253,1749267083158,-480.0,0.0002789,5]
[364839254,1749267083168,-480.0,0.0002789,5]
[364839255,1749267083177,-480.0,0.0002789,5]
[364839256,1749267083187,-480.0,0.0002789,5]
[364839257,1749267083197,-480.0,0.0002789,5]
[364839258,1749267083207,-480.0,0.0002789,5]
[364839259,1749267083218,-505.58,0.0002789,5]
[364839260,1749267083228,-480.0,0.0002789,5]
[364839261,1749267083237,-480.0,0.0002789,5]
[364839262,1749267083247,-480.0,0.0002789,5]
[364839263,1749267083257,-480.0,0.0002789,5]
[364839264,1749267083267,-480.0,0.0002789,5]
[364839265,1749267083279,-480.0,0.0002789,5]
[364839266,1749267083289,-485.61466262,0.0002789,5]
[364839267,1749267083299,-480.0,0.0002789,5]
[364839268,1749267083309,-480.0,0.0002789,5]
[364839269,1749267083320,-480.0,0.0002789,5]
[364839270,1749267083331,-480.0,0.0002789,5]
[364839271,1749267083341,-242.83641,0.0002789,7]
[364839272,1749267083351,-480.0,0.0002789,5]
[364839273,1749267083361,-242.83642,0.0002789,7]
[364839274,1749267083371,-604.92171895,0.0002789,5]
[364839275,1749267083381,-480.0,0.0002789,5]
[364839276,1749267083391,-480.0,0.0002789,5]
[364839277,1749267083401,-480.0,0.0002789,5]
[364839278,1749267083412,-151.0,0.0002789,7]
[364839279,1749267083422,-151.0,0.0002789,7]
[364839280,1749267083433,-1954.69,0.0002789,5]
[364839281,1749267083443,-492.94583877,0.0002789,5]
[364839282,1749267083453,-488.56,0.0002789,5]
[364839283,1749267083464,-480.0,0.0002789,5]
[364839284,1749267083474,-480.0,0.0002789,5]
[364839285,1749267083485,-263.419076,0.0002789,7]
[364839286,1749267083495,-480.0,0.0002789,5]
[364839287,1749267083504,-382.74147213,0.0002789,5]
[364839288,1749267083514,-480.0,0.0002789,5]
[364839289,1749267083524,-480.0,0.0002789,5]
[364839290,1749267083534,-480.0,0.0002789,5]
[364839291,1749267083544,-157.335287,0.0002789,7]
[364839292,1749267083554,-480.0,0.0002789,5]
[364839293,1749267083564,-157.335296,0.0002789,7]
[364839294,1749267083574,-480.0,0.0002789,5]
[364839295,1749267083583,-534.07,0.0002789,5]
[364839296,1749267083594,-480.0,0.0002789,5]
[364839297,1749267083604,-618.47,0.0002789,5]
[364839298,1749267083614,-480.0,0.0002789,5]
[364839299,1749267083624,-585.52,0.0002789,5]
[364839300,1749267083634,-571.94310867,0.0002789,5]
[364839301,1749267083643,-1363.86,0.0002789,5]
[364839302,1749267083653,-480.0,0.0002789,5]
[364839303,1749267083663,-1115.25,0.0002789,5]
[364839304,1749267083673,-480.0,0.0002789,5]
[364839305,1749267083684,-480.0,0.0002789,5]
[364839306,1749267083694,-480.0,0.0002789,5]
[364839307,1749267083703,-151.0,0.0002789,7]
[364839308,1749267083713,-774.18,0.0002789,5]
[364839309,1749267083723,-279.849055,0.0002789,7]
[364839310,1749267083734,-480.0,0.0002789,5]
[364839311,1749267083744,-480.0,0.0002789,5]
[364839312,1749267083755,-216.157797,0.0002789,7]
[364839313,1749267083765,-480.0,0.0002789,5]
[364839314,1749267083775,-216.157797,0.0002789,7]
[364839315,1749267083785,-501.9987913,0.0002789,5]
[364839316,1749267083795,-598.1,0.0002789,5]
[364839317,1749267083805,-480.0,0.0002789,5]
[364839318,1749267083815,-480.0,0.0002789,5]
[364839319,1749267083825,-508.27487436,0.0002789,5]
[364839320,1749267083835,-216.157797,0.0002789,7]
[364839321,1749267083845,-216.157792,0.0002789,7]
[364839322,1749267083855,-480.0,0.0002789,5]
[364839323,1749267083865,-722.49,0.0002789,5]
[364839324,1749267083875,-480.0,0.0002789,5]
[364839325,1749267083884,-480.0,0.0002789,5]
[364839326,1749267083896,-480.0,0.0002789,5]
[364839327,1749267083907,-534.116615,0.0002789,7]
[364839328,1749267083917,-534.116615,0.0002789,7]
[364839329,1749267083927,-534.116615,0.0002789,7]
[364839330,1749267083937,-534.116615,0.0002789,7]
[364839331,1749267083947,-502.09465456,0.0002789,5]
[364839332,1749267083958,-1003.36,0.0002789,5]
[364839333,1749267083968,-480.0,0.0002789,5]
[364839334,1749267083979,-271.84783535,0.0002789,5]
[364839335,1749267084078,-480.0,0.0002789,5]
[364839336,1749267084088,-545.14,0.0002789,5]
[364839337,1749267084098,-480.0,0.0002789,5]
[364839338,1749267084106,-1090.43,0.0002789,5]
[364839339,1749267084116,-480.0,0.0002789,5]
[364839340,1749267084126,-480.0,0.0002789,5]
[364839341,1749267084135,-630.65,0.0002789,5]
[364839342,1749267084145,-845.75,0.0002789,5]
[364839343,1749267084155,-480.0,0.0002789,5]
[364839344,1749267084164,-480.0,0.0002789,5]
[364839345,1749267084174,-1268.78,0.0002789,5]
[364839346,1749267084183,-517.3785128,0.0002789,5]
[364839347,1749267084193,-705.95,0.0002789,5]
[364839348,1749267084202,-151.0,0.0002789,7]
[364839349,1749267084211,-244.94722977,0.0002789,5]
[364839350,1749267084220,-842.42,0.0002789,5]
[364839351,1749267084230,-329.02318311,0.0002789,5]
[364839352,1749267084241,-153.34909144,0.0002789,5]
[364839353,1749267084251,-983.97,0.0002789,5]
[364839354,1749267084260,-480.0,0.0002789,5]
[364839355,1749267084270,-495.78,0.0002789,5]
[364839356,1749267084279,-480.0,0.0002789,5]
[364839357,1749267084291,-925.24,0.0002789,5]
[364839358,1749267084300,-903.48,0.0002789,5]
[364839359,1749267084309,-480.0,0.0002789,5]
[364839360,1749267084319,-480.0,0.0002789,5]
[364839361,1749267084328,-480.0,0.0002789,5]
[364839362,1749267084339,-480.0,0.0002789,5]
[364839363,1749267084349,-477.59830839,0.0002789,5]
[364839364,1749267084361,-480.0,0.0002789,5]
[364839365,1749267084371,-542.24734682,0.0002789,5]
[364839366,1749267084382,-480.0,0.0002789,5]
[364839367,1749267084392,-573.4,0.0002789,5]
[364839368,1749267084403,-151.0,0.0002789,7]
[364839369,1749267084413,-151.0,0.0002789,7]
[364839370,1749267084423,-480.0,0.0002789,5]
[364839371,1749267084433,-480.0,0.0002789,5]
[364839372,1749267084443,-480.0,0.0002789,5]
[364839373,1749267084454,-559.26,0.0002789,5]
[364839374,1749267084464,-480.0,0.0002789,5]
[364839375,1749267084474,-370.98250076,0.0002789,5]
[364839376,1749267084486,-480.0,0.0002789,5]
[364839377,1749267084498,-480.0,0.0002789,5]
[364839378,1749267084507,-554.27,0.0002789,5]
[364839379,1749267084518,-480.0,0.0002789,5]
[364839380,1749267084528,-480.0,0.0002789,5]
[364839381,1749267084537,-994.12,0.0002789,5]
[364839382,1749267084547,-611.81,0.0002789,5]
[364839383,1749267084557,-480.0,0.0002789,5]
[364839384,1749267084568,-706.88,0.0002789,5]
[364839385,1749267084577,-480.0,0.0002789,5]
[364839386,1749267084586,-480.0,0.0002789,5]
[364839387,1749267084596,-345.28943,0.0002789,7]
[364839388,1749267084606,-345.28943,0.0002789,7]
[364839389,1749267084616,-1165.67,0.0002789,5]
[364839390,1749267084626,-494.12012284,0.0002789,5]
[364839391,1749267084635,-345.28943,0.0002789,7]
[364839392,1749267084644,-345.28943,0.0002789,7]
[364839393,1749267084654,-480.0,0.0002789,5]
[364839394,1749267084663,-480.0,0.0002789,5]
[364839395,1749267084673,-480.0,0.0002789,5]
[364839396,1749267084682,-480.0,0.0002789,5]
[364839397,1749267084692,-151.0,0.0002789,7]
[364839398,1749267084703,-480.0,0.0002789,5]
[364839399,1749267084712,-151.0,0.0002789,7]
[364839400,1749267084722,-480.0,0.0002789,5]
[364839401,1749267084731,-480.0,0.0002789,5]
[364839402,1749267084741,-496.45483035,0.0002789,5]
[364839403,1749267084752,-480.0,0.0002789,5]
[364839404,1749267084762,-789.96,0.0002789,5]
[364839405,1749267084772,-480.0,0.0002789,5]
[364839406,1749267084781,-480.0,0.0002789,5]
[364839407,1749267084791,-162.947667,0.0002789,7]
[364839408,1749267084801,-480.0,0.0002789,5]
[364839409,1749267084810,-480.0,0.0002789,5]
[364839410,1749267084819,-487.69146044,0.0002789,5]
[364839411,1749267084829,-480.0,0.0002789,5]
[364839412,1749267084838,-779.14,0.0002789,5]
[364839413,1749267084848,-480.0,0.0002789,5]
[364839414,1749267084858,-754.4,0.0002789,5]
[364839415,1749267084868,-480.0,0.0002789,5]
[364839416,1749267084880,-10000.0,0.0002789,7]
[364839417,1749267084890,-10000.0,0.0002789,7]
[364839418,1749267084900,-480.0,0.0002789,5]
[364839419,1749267084909,-480.0,0.0002789,5]
[364839420,1749267084919,-480.0,0.0002789,5]
[364839421,1749267084929,-943.75,0.0002789,5]
[364839422,1749267084938,-511.38468774,0.0002789,5]
[364839423,1749267084948,-700.75,0.0002789,5]
[364839424,1749267084958,-480.0,0.0002789,5]
[364839425,1749267084967,-753.65,0.0002789,5]
[364839426,1749267084977,-480.0,0.0002789,5]
[364839427,1749267084987,-323.35036483,0.0002789,5]
[364839428,1749267085000,-592.62,0.0002789,5]
[364839429,1749267085010,-480.0,0.0002789,5]
[364839430,1749267085019,-480.0,0.0002789,5]
[364839431,1749267085030,-850.33,0.0002789,5]
[364839432,1749267085040,-480.0,0.0002789,5]
[364839433,1749267085050,-601.8,0.0002789,5]
[364839434,1749267085061,-480.0,0.0002789,5]
[364839435,1749267085071,-1504.99,0.0002789,5]
[364839436,1749267085081,-1932.61,0.0002789,5]
[364839437,1749267085090,-151.0,0.0002789,7]
[364839438,1749267085099,-270.708553,0.0002789,7]
[364839439,1749267085108,-151.0,0.0002789,7]
[364839440,1749267085118,-151.0,0.0002789,7]
[364839441,1749267085128,-494.24,0.0002789,5]
[364839442,1749267085137,-736.47,0.0002789,5]
[364839443,1749267085146,-480.0,0.0002789,5]
[364839444,1749267085155,-853.62,0.0002789,5]
[364839445,1749267085165,-498.93761496,0.0002789,5]
[364839446,1749267085174,-480.0,0.0002789,5]
[364839447,1749267085183,-480.0,0.0002789,5]
[364839448,1749267085194,-480.0,0.0002789,5]
[364839449,1749267085205,-480.0,0.0002789,5]
[364839450,1749267085215,-480.0,0.0002789,5]
[364839451,1749267085226,-480.0,0.0002789,5]
[364839452,1749267085236,-949.58,0.0002789,5]
[364839453,1749267085246,-553.1,0.0002789,5]
[364839454,1749267085256,-842.89,0.0002789,5]
[364839455,1749267085266,-480.0,0.0002789,5]
[364839456,1749267085276,-1000.0,0.0002789,5]
[364839457,1749267085285,-480.0,0.0002789,5]
[364839458,1749267085295,-151.0,0.0002789,7]
[364839459,1749267085305,-480.0,0.0002789,5]
[364839460,1749267085314,-151.0,0.0002789,7]
[364839461,1749267085323,-480.0,0.0002789,5]
[364839462,1749267085333,-480.0,0.0002789,5]
[364839463,1749267085343,-480.0,0.0002789,5]
[364839464,1749267085352,-480.0,0.0002789,5]
[364839465,1749267085362,-930.43,0.0002789,5]
[364839466,1749267085371,-480.0,0.0002789,5]
[364839467,1749267085381,-480.0,0.0002789,5]
[364839468,1749267085391,-480.0,0.0002789,2]
[364839469,1749267085401,-916.35,0.0002789,5]
[364839470,1749267085412,-244.362178,0.0002789,7]
[364839471,1749267085423,-244.362178,0.0002789,7]
[364839472,1749267085434,-589.04,0.0002789,5]
[364839473,1749267085444,-244.362178,0.0002789,7]
[364839474,1749267085454,-244.362178,0.0002789,7]
[364839475,1749267085465,-765.06,0.0002789,5]
[364839476,1749267085475,-480.0,0.0002789,5]
[364839477,1749267085484,-943.25,0.0002789,5]
[364839478,1749267085494,-620.08,0.0002789,5]
[364839479,1749267085504,-807.46,0.0002789,5]
[364839480,1749267085514,-151.0,0.0002789,7]
[364839481,1749267085525,-1648.23,0.0002789,5]
[364839482,1749267085534,-607.29,0.0002789,5]
[364839483,1749267085544,-620.28,0.0002789,5]
[364839484,1749267085555,-480.0,0.0002789,5]
[364839485,1749267085564,-769.25,0.0002789,5]
[364839486,1749267085574,-2181.17,0.0002789,5]
[364839487,1749267085584,-474.07139219,0.0002789,5]
[364839488,1749267085595,-504.49700168,0.0002789,5]
[364839489,1749267085605,-1412.46,0.0002789,5]
[364839490,1749267085615,-229.668718,0.0002789,7]
[364839491,1749267085625,-229.668718,0.0002789,7]
[364839492,1749267085635,-593.81,0.0002789,5]
[364839493,1749267085645,-504.56,0.0002789,5]
[364839494,1749267085656,-229.668718,0.0002789,7]
[364839495,1749267085666,-5750.84,0.0002789,5]
[364839496,1749267085675,-229.668718,0.0002789,7]
[364839497,1749267085685,-480.0,0.0002789,5]
[364839498,1749267085695,-345.60530076,0.0002789,5]
[364839499,1749267085704,-480.0,0.0002789,5]
[364839500,1749267085715,-480.0,0.0002789,5]
[364839501,1749267085724,-480.0,0.0002789,5]
[364839502,1749267085734,-301.576605,0.0002789,7]
[364839503,1749267085743,-301.576605,0.0002789,7]
[364839504,1749267085754,-1267.21,0.0002789,5]
[364839505,1749267085763,-429.296062,0.0002789,7]
[364839506,1749267085773,-10955.06,0.0002789,5]
[364839507,1749267085782,-429.296062,0.0002789,7]
[364839508,1749267085792,-480.0,0.0002789,5]
[364839509,1749267085802,-480.0,0.0002789,5]
[364839510,1749267085812,-301.576605,0.0002789,7]
[364839511,1749267085823,-301.576611,0.0002789,7]
[364839512,1749267085834,-480.0,0.0002789,5]
[364839513,1749267085843,-429.296062,0.0002789,7]
[364839514,1749267085854,-429.296062,0.0002789,7]
[364839515,1749267085865,-480.0,0.0002789,5]
[364839516,1749267085875,-480.0,0.0002789,5]
[364839517,1749267085884,-480.0,0.0002789,5]
[364839518,1749267085895,-480.0,0.0002789,5]
[364839519,1749267085906,-41027.68,0.0002789,5]
[364839520,1749267085918,-7087.11,0.0002789,5]
[364839521,1749267085927,-480.0,0.0002789,5]
[364839522,1749267085936,-2433.15,0.0002789,5]
[364839523,1749267085945,-493.32430648,0.0002789,5]
[364839524,1749267085954,-480.0,0.0002789,5]
[364839525,1749267085964,-480.0,0.0002789,5]
[364839526,1749267085974,-7622.05,0.0002789,5]
[364839527,1749267085984,-835.03,0.0002789,5]
[364839528,1749267085996,-480.0,0.0002789,5]
[364839529,1749267086006,-480.0,0.0002789,5]
[364839530,1749267086015,-480.0,0.0002789,5]
[364839531,1749267086025,-3297.59,0.0002789,5]
[364839532,1749267086035,-2182.78,0.0002789,5]
[364839533,1749267086044,-189.7057062,0.0002789,5]
[364839534,1749267086053,-1072.0,0.0002789,5]
[364839535,1749267086065,-584.49243187,0.0002789,5]
[364839536,1749267086078,-3803.92,0.0002789,5]
[364839537,1749267086088,-506.33899313,0.0002789,5]
[364839538,1749267086099,-480.0,0.0002789,5]
[364839539,1749267086109,-607.41,0.0002789,5]
[364839540,1749267086120,-675.89,0.0002789,5]
[364839541,1749267086129,-1367.55,0.0002789,5]
[364839542,1749267086139,-1039.63,0.0002789,5]
[364839543,1749267086149,-480.0,0.0002789,5]
[364839544,1749267086159,-480.0,0.0002789,5]
[364839545,1749267086168,-2010.42,0.0002789,5]
[364839546,1749267086177,-1045.76,0.0002789,5]
[364839547,1749267086187,-1111.08,0.0002789,5]
[364839548,1749267086197,-480.0,0.0002789,5]
[364839549,1749267086207,-480.0,0.0002789,5]
[364839550,1749267086217,-151.0,0.0002789,7]
[364839551,1749267086229,-596.48,0.0002789,5]
[364839552,1749267086239,-769.38,0.0002789,5]
[364839553,1749267086248,-480.0,0.0002789,5]
[364839554,1749267086258,-480.0,0.0002789,5]
[364839555,1749267086271,-300.0,0.0002789,5]
[364839556,1749267086280,-480.0,0.0002789,5]
[364839557,1749267086290,-1666.49,0.0002789,5]
[364839558,1749267086300,-480.0,0.0002789,5]
[364839559,1749267086311,-480.0,0.0002789,5]
[364839560,1749267086321,-480.0,0.0002789,5]
[364839561,1749267086331,-1861.6,0.0002789,2]
[364839562,1749267086341,-480.0,0.0002789,5]
[364839563,1749267086350,-480.0,0.0002789,5]
[364839564,1749267086361,-3481.74,0.0002789,5]
[364839565,1749267086371,-1287.03,0.0002789,5]
[364839566,1749267086381,-1278.11,0.0002789,5]
[364839567,1749267086392,-480.0,0.0002789,5]
[364839568,1749267086402,-1788.9,0.0002789,5]
[364839569,1749267086413,-499.54,0.0002789,5]
[364839570,1749267086423,-151.0,0.0002789,7]
[364839571,1749267086433,-151.0,0.0002789,7]
[364839572,1749267086443,-480.0,0.0002789,5]
[364839573,1749267086455,-480.0,0.0002789,5]
[364839574,1749267086466,-480.0,0.0002789,5]
[364839575,1749267086477,-1256.95,0.0002789,5]
[364839576,1749267086487,-480.0,0.0002789,5]
[364839577,1749267086498,-526.10222938,0.0002789,5]
[364839578,1749267086509,-1671.91,0.0002789,5]
[364839579,1749267086520,-480.0,0.0002789,5]
[364839580,1749267086530,-859.96,0.0002789,5]
[364839581,1749267086541,-11876.34,0.0002789,5]
[364839582,1749267086552,-5767.87,0.0002789,5]
[364839583,1749267086562,-480.0,0.0002789,5]
[364839584,1749267086571,-480.0,0.0002789,5]
[364839585,1749267086581,-3035.15,0.0002789,5]
[364839586,1749267086592,-755.58,0.0002789,5]
[364839587,1749267086602,-480.0,0.0002789,5]
[364839588,1749267086612,-1813.84,0.0002789,5]
[364839589,1749267086622,-1581.96,0.0002789,5]
[364839590,1749267086633,-2521.31,0.0002789,5]
[364839591,1749267086643,-1345.91,0.0002789,5]
[364839592,1749267086654,-414.95753657,0.0002789,5]
[364839593,1749267086664,-780.25,0.0002789,5]
[364839594,1749267086674,-408.31182827,0.0002789,5]
[364839595,1749267086684,-1450.59,0.0002789,5]
[364839596,1749267086694,-201.193326,0.0002789,7]
[364839597,1749267086704,-480.0,0.0002789,5]
[364839598,1749267086715,-732.27,0.0002789,5]
[364839599,1749267086725,-6110.32,0.0002789,5]
[364839600,1749267086735,-201.193326,0.0002789,7]
[364839601,1749267086745,-1271.75,0.0002789,5]